lending/lending_fUSD_20250808
["ID","MTS","AMOUNT","RATE_DAILY","PERIOD"]
[377936247,1754615459780,-267.1,0.00020547,2]
[377936248,1754615459791,-183.16,0.00020547,2]
[377936249,1754615459805,-212.64,0.00020547,2]
[377936250,1754615459820,-336.47,0.00020547,2]
[377936251,1754615459833,-189.6,0.00020547,2]
[377936252,1754615459845,-400.0,0.00020547,2]
[377936253,1754615459858,-257.77,0.00020547,2]
[377936254,1754615459870,-579.75,0.00020547,2]
[377936255,1754615459883,-216.97,0.00020547,2]
[377936256,1754615459895,-400.0,0.00020547,2]
[377936257,1754615459908,-239.06,0.00020547,2]
[377936258,1754615459929,-427.81,0.00020547,2]
[377936259,1754615459943,-400.0,0.00020547,2]
[377936260,1754615459958,-535.02,0.00020547,2]
[377936261,1754615459973,-400.0,0.00020547,2]
[377936262,1754615459984,-400.0,0.00020547,2]
[377936263,1754615459997,-400.0,0.00020547,2]
[377936264,1754615460011,-205.01,0.00020547,2]
[377936265,1754615460031,-400.0,0.00020547,2]
[377936266,1754615460043,-547.9,0.00020547,2]
[377936267,1754615460055,-400.0,0.00020547,2]
[377936268,1754615460068,-400.0,0.00020547,2]
[377936269,1754615460082,-400.0,0.00020547,2]
[377936270,1754615460095,-400.0,0.00020547,2]
[377936271,1754615460107,-2201.94,0.00020547,2]
[377936272,1754615460121,-400.0,0.00020547,2]
[377936273,1754615460135,-400.0,0.00020547,2]
[377936274,1754615460148,-489.02,0.00020547,2]
[377936275,1754615460160,-400.0,0.00020547,2]
[377936276,1754615460176,-150.0,0.00020629,4]
[377936277,1754615460189,-545.83,0.00020669,2]
[377936278,1754615460202,-400.0,0.00020669,2]
[377936279,1754615460214,-400.0,0.00020669,2]
[377936280,1754615460227,-400.0,0.00020669,2]
[377936281,1754615460240,-400.0,0.00020669,2]
[377936282,1754615460252,-400.0,0.00020669,2]
[377936283,1754615460265,-400.0,0.00020669,2]
[377936284,1754615460278,-400.0,0.00020669,2]
[377936285,1754615460291,-400.0,0.00020669,2]
[377936286,1754615460304,-400.0,0.00020669,2]
[377936287,1754615460317,-150.0,0.00020708,4]
[377936288,1754615460330,-467.94,0.0002082,2]
[377936289,1754615460344,-691.91,0.0002082,2]
[377936290,1754615460357,-500.0,0.0002082,2]
[377936291,1754615460370,-400.0,0.0002082,2]
[377936292,1754615460383,-382.0,0.0002082,2]
[377936293,1754615460529,-400.0,0.0002082,2]
[377936294,1754615460543,-510.98769659,0.0002082,2]
[377936295,1754615460558,-498.82831279,0.0002082,2]
[377936296,1754615460571,-400.0,0.0002082,2]
[377936297,1754615460583,-506.53,0.0002082,2]
[377936298,1754615460598,-274.85,0.0002082,2]
[377936299,1754615460817,-400.0,0.0002082,2]
[377936300,1754615460831,-500.0,0.0002082,2]
[377936301,1754615460844,-500.0,0.0002082,2]
[377936302,1754615460857,-400.0,0.0002082,2]
[377936303,1754615460870,-400.0,0.0002082,2]
[377936304,1754615460883,-544.56,0.0002082,2]
[377936305,1754615460897,-452.93,0.0002082,2]
[377936306,1754615460910,-179.43,0.0002082,2]
[377936307,1754615460927,-400.0,0.0002082,2]
[377936308,1754615460940,-400.0,0.0002082,2]
[377936309,1754615460954,-400.0,0.0002082,2]
[377936310,1754615460977,-269.29,0.0002082,2]
[377936311,1754615460994,-255.36,0.0002082,2]
[377936312,1754615461009,-400.0,0.0002082,2]
[377936313,1754615461021,-196.54,0.0002082,2]
[377936314,1754615461036,-400.0,0.0002082,2]
[377936315,1754615461049,-210.28,0.0002082,2]
[377936316,1754615461062,-455.62,0.0002082,2]
[377936317,1754615461075,-400.0,0.0002082,2]
[377936318,1754615461088,-219.86,0.0002082,2]
[377936319,1754615461099,-400.0,0.0002082,2]
[377936320,1754615461111,-400.0,0.0002082,2]
[377936321,1754615461123,-337.97,0.0002082,2]
[377936322,1754615461135,-400.0,0.0002082,2]
[377936323,1754615461148,-400.0,0.0002082,2]
[377936324,1754615461160,-400.0,0.0002082,2]
[377936325,1754615461173,-400.0,0.0002082,2]
[377936326,1754615461186,-448.57,0.0002082,2]
[377936327,1754615461199,-400.0,0.0002082,2]
[377936328,1754615461212,-400.0,0.0002082,2]
[377936329,1754615461226,-400.0,0.0002082,2]
[377936330,1754615461238,-500.0,0.0002082,2]
[377936331,1754615461250,-396.42,0.0002082,2]
[377936332,1754615461262,-374.67,0.0002082,2]
[377936333,1754615461274,-221.02,0.0002082,2]
[377936334,1754615461286,-358.83,0.0002082,2]
[377936335,1754615461298,-400.0,0.0002082,2]
[377936336,1754615461310,-400.0,0.0002082,2]
[377936337,1754615461322,-400.0,0.0002082,2]
[377936338,1754615461334,-174.49,0.0002082,2]
[377936339,1754615461345,-400.0,0.0002082,2]
[377936340,1754615461357,-400.0,0.0002082,2]
[377936341,1754615461368,-400.0,0.0002082,2]
[377936342,1754615461380,-400.0,0.0002082,2]
[377936343,1754615461392,-400.0,0.0002082,2]
[377936344,1754615461404,-672.45,0.0002082,2]
[377936345,1754615461415,-407.25,0.0002082,2]
[377936346,1754615461440,-400.0,0.0002082,2]
[377936347,1754615461452,-400.0,0.0002082,2]
[377936348,1754615461463,-559.67,0.0002082,2]
[377936349,1754615461475,-400.0,0.0002082,2]
[377936350,1754615461491,-400.0,0.0002082,2]
[377936351,1754615461503,-400.0,0.0002082,2]
[377936352,1754615461518,-400.0,0.0002082,2]
[377936353,1754615461531,-298.23,0.0002082,2]
[377936354,1754615461543,-400.0,0.0002082,2]
[377936355,1754615461557,-482.21,0.0002082,2]
[377936356,1754615461569,-420.0,0.0002082,2]
[377936357,1754615461581,-400.0,0.0002082,2]
[377936358,1754615461596,-400.0,0.0002082,2]
[377936359,1754615461608,-400.0,0.0002082,2]
[377936360,1754615461619,-400.0,0.0002082,2]
[377936361,1754615461631,-400.0,0.0002082,2]
[377936362,1754615461643,-400.0,0.0002082,2]
[377936363,1754615461655,-400.0,0.0002082,2]
[377936364,1754615461668,-400.0,0.0002082,2]
[377936365,1754615461685,-377.96,0.0002082,2]
[377936366,1754615461699,-468.7,0.0002082,2]
[377936367,1754615461711,-505.39,0.0002082,2]
[377936368,1754615461724,-176.76,0.00020821,2]
[377936369,1754615461735,-439.95,0.00020821,2]
[377936370,1754615461747,-349.04,0.00020821,2]
[377936371,1754615461759,-400.0,0.00020821,2]
[377936372,1754615461770,-208.59,0.00020821,2]
[377936373,1754615461783,-400.0,0.00020821,2]
[377936374,1754615461794,-579.75,0.00020821,2]
[377936375,1754615461808,-400.0,0.00020821,2]
[377936376,1754615461820,-400.0,0.00020821,2]
[377936377,1754615461831,-535.02,0.00020821,2]
[377936378,1754615461843,-400.0,0.00020821,2]
[377936379,1754615461856,-400.0,0.00020821,2]
[377936380,1754615461868,-183.24,0.00020821,2]
[377936381,1754615461880,-400.0,0.00020821,2]
[377936382,1754615461892,-400.0,0.00020821,2]
[377936383,1754615461904,-400.0,0.00020821,2]
[377936384,1754615461918,-400.0,0.00020821,2]
[377936385,1754615461935,-400.0,0.00020821,2]
[377936386,1754615461947,-2201.94,0.00020821,2]
[377936387,1754615461959,-530.61,0.00020821,2]
[377936388,1754615461970,-400.0,0.00020821,2]
[377936389,1754615461982,-400.0,0.00020821,2]
[377936390,1754615461995,-300.0,0.000209,7]
[377936391,1754615462006,-400.0,0.00020943,2]
[377936392,1754615462019,-400.0,0.00020943,2]
[377936393,1754615462032,-400.0,0.00020943,2]
[377936394,1754615462044,-400.0,0.00020943,2]
[377936395,1754615462056,-400.0,0.00020943,2]
[377936396,1754615462067,-400.0,0.00020943,2]
[377936397,1754615462080,-400.0,0.00020943,2]
[377936398,1754615462094,-400.0,0.00020943,2]
[377936399,1754615462106,-400.0,0.00020943,2]
[377936400,1754615462122,-504.04040817,0.00020993,2]
[377936401,1754615462134,-153.75,0.00020998,2]
[377936402,1754615462146,-150.0,0.00021027,4]
[377936403,1754615462158,-691.91,0.00021094,2]
[377936404,1754615462172,-258.55,0.00021094,2]
[377936405,1754615462185,-400.0,0.00021094,2]
[377936406,1754615462196,-160.19,0.00021094,2]
[377936407,1754615462208,-506.53,0.00021094,2]
[377936408,1754615462225,-400.0,0.00021094,2]
[377936409,1754615462237,-400.0,0.00021094,2]
[377936410,1754615462250,-400.0,0.00021094,2]
[377936411,1754615462262,-400.0,0.00021094,2]
[377936412,1754615462273,-400.0,0.00021094,2]
[377936413,1754615462286,-400.0,0.00021094,2]
[377936414,1754615462297,-400.0,0.00021094,2]
[377936415,1754615462309,-400.0,0.00021094,2]
[377936416,1754615462322,-288.81,0.00021094,2]
[377936417,1754615462332,-400.0,0.00021094,2]
[377936418,1754615462344,-400.0,0.00021094,2]
[377936419,1754615462355,-400.0,0.00021094,2]
[377936420,1754615462365,-291.99,0.00021094,2]
[377936421,1754615462376,-400.0,0.00021094,2]
[377936422,1754615462387,-387.38,0.00021094,2]
[377936423,1754615462399,-525.76,0.00021094,2]
[377936424,1754615462409,-274.41,0.00021094,2]
[377936425,1754615462425,-290.02,0.00021094,2]
[377936426,1754615462437,-369.27,0.00021094,2]
[377936427,1754615462448,-400.0,0.00021094,2]
[377936428,1754615462460,-294.7,0.00021094,2]
[377936429,1754615462471,-536.28,0.00021094,2]
[377936430,1754615462482,-400.0,0.00021094,2]
[377936431,1754615462494,-155.29,0.00021094,2]
[377936432,1754615462506,-477.67,0.00021094,2]
[377936433,1754615462522,-515.34,0.00021094,2]
[377936434,1754615462537,-672.45,0.00021094,2]
[377936435,1754615462548,-407.25,0.00021094,2]
[377936436,1754615462562,-400.0,0.00021094,2]
[377936437,1754615462574,-400.0,0.00021094,2]
[377936438,1754615462586,-236.58,0.00021094,2]
[377936439,1754615462601,-253.19,0.00021094,2]
[377936440,1754615462614,-549.43,0.00021094,2]
[377936441,1754615462626,-400.0,0.00021094,2]
[377936442,1754615462645,-333.47,0.00021094,2]
[377936443,1754615462658,-400.0,0.00021094,2]
[377936444,1754615462673,-400.0,0.00021094,2]
[377936445,1754615462684,-268.06,0.00021094,2]
[377936446,1754615462696,-341.91,0.00021094,2]
[377936447,1754615462708,-400.0,0.00021094,2]
[377936448,1754615462720,-400.0,0.00021094,2]
[377936449,1754615462731,-400.0,0.00021094,2]
[377936450,1754615462746,-400.0,0.00021094,2]
[377936451,1754615462757,-400.0,0.00021095,2]
[377936452,1754615462769,-400.0,0.00021095,2]
[377936453,1754615462781,-579.75,0.00021095,2]
[377936454,1754615462793,-400.0,0.00021095,2]
[377936455,1754615462805,-236.28882002,0.00021095,2]
[377936456,1754615462816,-535.02,0.00021095,2]
[377936457,1754615462828,-532.19,0.00021095,2]
[377936458,1754615462841,-400.0,0.00021095,2]
[377936459,1754615462853,-400.0,0.00021095,2]
[377936460,1754615462865,-400.0,0.00021095,2]
[377936461,1754615462877,-464.68,0.00021095,2]
[377936462,1754615462889,-400.0,0.00021095,2]
[377936463,1754615462901,-400.0,0.00021095,2]
[377936464,1754615462913,-2201.94,0.00021095,2]
[377936465,1754615462932,-325.92,0.00021095,2]
[377936466,1754615462944,-297.73,0.00021095,2]
[377936467,1754615462956,-188.34,0.00021143,2]
[377936468,1754615462968,-4757.114,0.00021153,2]
[377936469,1754615462980,-307.041,0.00021153,2]
[377936470,1754615462992,-150.0,0.00021186,4]
[377936471,1754615463003,-400.0,0.00021217,2]
[377936472,1754615463015,-400.0,0.00021217,2]
[377936473,1754615463027,-400.0,0.00021217,2]
[377936474,1754615463038,-400.0,0.00021217,2]
[377936475,1754615463050,-400.0,0.00021217,2]
[377936476,1754615463270,-400.0,0.00021217,2]
[377936477,1754615463282,-400.0,0.00021217,2]
[377936478,1754615463296,-400.0,0.00021217,2]
[377936479,1754615463309,-400.0,0.00021217,2]
[377936480,1754615463322,-191.79920234,0.00021268,2]
[377936481,1754615463333,-150.0,0.00021346,4]
[377936482,1754615463345,-691.91,0.00021368,2]
[377936483,1754615463356,-400.0,0.00021368,2]
[377936484,1754615463369,-506.53,0.00021368,2]
[377936485,1754615463383,-400.0,0.00021368,2]
[377936486,1754615463396,-283.30422744,0.00021368,2]
[377936487,1754615463408,-400.0,0.00021368,2]
[377936488,1754615463425,-369.26,0.00021368,2]
[377936489,1754615463438,-400.0,0.00021368,2]
[377936490,1754615463451,-228.91,0.00021368,2]
[377936491,1754615463463,-400.0,0.00021368,2]
[377936492,1754615463477,-198.42,0.00021368,2]
[377936493,1754615463489,-457.64,0.00021368,2]
[377936494,1754615463500,-459.79,0.00021368,2]
[377936495,1754615463517,-400.0,0.00021368,2]
[377936496,1754615463528,-400.0,0.00021368,2]
[377936497,1754615463541,-400.0,0.00021368,2]
[377936498,1754615463554,-400.0,0.00021368,2]
[377936499,1754615463565,-672.45,0.00021368,2]
[377936500,1754615463578,-407.25,0.00021368,2]
[377936501,1754615463807,-332.92,0.00021368,2]
[377936502,1754615463869,-400.0,0.00021368,2]
[377936503,1754615463882,-400.0,0.00021368,2]
[377936504,1754615463894,-251.07,0.00021368,2]
[377936505,1754615463906,-182.6,0.00021368,2]
[377936506,1754615463921,-400.0,0.00021368,2]
[377936507,1754615463934,-524.91,0.00021368,2]
[377936508,1754615463946,-400.0,0.00021368,2]
[377936509,1754615463958,-400.0,0.00021368,2]
[377936510,1754615463971,-400.0,0.00021369,2]
[377936511,1754615463983,-400.0,0.00021369,2]
[377936512,1754615463996,-579.75,0.00021369,2]
[377936513,1754615464009,-400.0,0.00021369,2]
[377936514,1754615464022,-535.02,0.00021369,2]
[377936515,1754615464033,-400.0,0.00021369,2]
[377936516,1754615464046,-400.0,0.00021369,2]
[377936517,1754615464058,-400.0,0.00021369,2]
[377936518,1754615464070,-400.0,0.00021369,2]
[377936519,1754615464081,-400.0,0.00021369,2]
[377936520,1754615464097,-2201.94,0.00021369,2]
[377936521,1754615464108,-400.0,0.00021491,2]
[377936522,1754615464119,-161.59,0.00021491,2]
[377936523,1754615464130,-517.54,0.00021491,2]
[377936524,1754615464141,-400.0,0.00021491,2]
[377936525,1754615464153,-400.0,0.00021491,2]
[377936526,1754615464171,-400.0,0.00021491,2]
[377936527,1754615464186,-400.0,0.00021491,2]
[377936528,1754615464200,-400.0,0.00021491,2]
[377936529,1754615464212,-400.0,0.00021491,2]
[377936530,1754615464223,-1000.0,0.00021491,2]
[377936531,1754615464235,-24440.74531025,0.00021531,2]
[377936532,1754615464247,-691.91,0.00021642,2]
[377936533,1754615464258,-400.0,0.00021642,2]
[377936534,1754615464271,-506.53,0.00021642,2]
[377936535,1754615464283,-400.0,0.00021642,2]
[377936536,1754615464294,-302.91,0.00021642,2]
[377936537,1754615464308,-400.0,0.00021642,2]
[377936538,1754615464321,-400.0,0.00021642,2]
[377936539,1754615464334,-400.0,0.00021642,2]
[377936540,1754615464346,-257.14,0.00021642,2]
[377936541,1754615464357,-400.0,0.00021642,2]
[377936542,1754615464369,-400.0,0.00021642,2]
[377936543,1754615464381,-672.45,0.00021642,2]
[377936544,1754615464394,-407.25,0.00021642,2]
[377936545,1754615464410,-400.0,0.00021642,2]
[377936546,1754615464424,-400.0,0.00021642,2]
[377936547,1754615464440,-400.0,0.00021642,2]
[377936548,1754615464452,-400.0,0.00021642,2]
[377936549,1754615464465,-400.0,0.00021642,2]
[377936550,1754615464478,-400.0,0.00021643,2]
[377936551,1754615464490,-237.54,0.00021643,2]
[377936552,1754615464503,-579.75,0.00021643,2]
[377936553,1754615464520,-400.0,0.00021643,2]
[377936554,1754615464532,-535.02,0.00021643,2]
[377936555,1754615464544,-334.32,0.00021643,2]
[377936556,1754615464557,-400.0,0.00021643,2]
[377936557,1754615464570,-302.95,0.00021643,2]
[377936558,1754615464582,-400.0,0.00021643,2]
[377936559,1754615464593,-181.85,0.00021643,2]
[377936560,1754615464607,-2201.94,0.00021643,2]
[377936561,1754615464620,-150.0,0.00021664,4]
[377936562,1754615464632,-150.0,0.00021744,4]
[377936563,1754615464644,-380.99,0.00021765,2]
[377936564,1754615464656,-400.0,0.00021765,2]
[377936565,1754615464668,-400.0,0.00021765,2]
[377936566,1754615464683,-400.0,0.00021765,2]
[377936567,1754615464697,-368.42,0.00021765,2]
[377936568,1754615464709,-269.26,0.00021765,2]
[377936569,1754615464723,-691.91,0.00021916,2]
[377936570,1754615464736,-400.0,0.00021916,2]
[377936571,1754615464748,-506.53,0.00021916,2]
[377936572,1754615464760,-268.03,0.00021916,2]
[377936573,1754615464773,-543.1,0.00021916,2]
[377936574,1754615464784,-400.0,0.00021916,2]
[377936575,1754615464795,-153.39,0.00021916,2]
[377936576,1754615464807,-400.0,0.00021916,2]
[377936577,1754615464819,-400.0,0.00021916,2]
[377936578,1754615464831,-672.45,0.00021916,2]
[377936579,1754615464843,-407.25,0.00021916,2]
[377936580,1754615464855,-400.0,0.00021916,2]
[377936581,1754615464867,-400.0,0.00021916,2]
[377936582,1754615464879,-384.13995204,0.00021916,2]
[377936583,1754615464891,-400.0,0.00021916,2]
[377936584,1754615464904,-2500.0,0.00021917,2]
[377936585,1754615464916,-1073.66717523,0.00021917,2]
[377936586,1754615464933,-400.0,0.00021917,2]
[377936587,1754615464945,-579.75,0.00021917,2]
[377936588,1754615464957,-220.23,0.00021917,2]
[377936589,1754615464969,-535.02,0.00021917,2]
[377936590,1754615464982,-400.0,0.00021917,2]
[377936591,1754615464995,-443.92,0.00021917,2]
[377936592,1754615465008,-2201.94,0.00021917,2]
[377936593,1754615465020,-5000.0,0.00021918,2]
[377936594,1754615465033,-150.0,0.00021918,2]
[377936595,1754615465046,-150.0,0.00021983,4]
[377936596,1754615465057,-2441.55,0.0002203,2]
[377936597,1754615465069,-400.0,0.00022039,2]
[377936598,1754615465081,-400.0,0.00022039,2]
[377936599,1754615465093,-400.0,0.00022039,2]
[377936600,1754615465105,-188.34,0.00022062,2]
[377936601,1754615465117,-691.91,0.0002219,2]
[377936602,1754615465128,-254.60169679,0.0002219,2]
[377936603,1754615465139,-506.53,0.0002219,2]
[377936604,1754615465151,-278.50315386,0.0002219,2]
[377936605,1754615465162,-400.0,0.0002219,2]
[377936606,1754615465179,-236.62,0.0002219,2]
[377936607,1754615465191,-672.45,0.0002219,2]
[377936608,1754615465201,-407.25,0.0002219,2]
[377936609,1754615465213,-400.0,0.0002219,2]
[377936610,1754615465225,-400.0,0.0002219,2]
[377936611,1754615465243,-400.0,0.0002219,2]
[377936612,1754615465256,-526.39,0.00022191,2]
[377936613,1754615465268,-579.75,0.00022191,2]
[377936614,1754615465281,-535.02,0.00022191,2]
[377936615,1754615465294,-400.0,0.00022191,2]
[377936616,1754615465307,-2201.94,0.00022191,2]
[377936617,1754615465319,-291.126895,0.00022301,4]
[377936618,1754615465330,-182.32658937,0.00022301,4]
[377936619,1754615465347,-150.0,0.00022301,4]
[377936620,1754615465360,-191.78,0.00022313,2]
[377936621,1754615465371,-186.72,0.00022313,2]
[377936622,1754615465383,-400.0,0.00022313,2]
[377936623,1754615465395,-3164.15,0.00022359,2]
[377936624,1754615465406,-691.91,0.00022464,2]
[377936625,1754615465419,-506.53,0.00022464,2]
[377936626,1754615465435,-400.0,0.00022464,2]
[377936627,1754615465451,-672.45,0.00022464,2]
[377936628,1754615465463,-407.25,0.00022464,2]
[377936629,1754615465475,-229.31,0.00022464,2]
[377936630,1754615465486,-240.58,0.00022464,2]
[377936631,1754615465498,-400.0,0.00022464,2]
[377936632,1754615465513,-579.75,0.00022465,2]
[377936633,1754615465526,-535.02,0.00022465,2]
[377936634,1754615465537,-543.52,0.00022465,2]
[377936635,1754615465548,-2201.94,0.00022465,2]
[377936636,1754615465767,-163.93,0.00022544,2]
[377936637,1754615465778,-400.0,0.00022587,2]
[377936638,1754615465792,-494.0,0.00022691,2]
[377936639,1754615465804,-691.91,0.00022738,2]
[377936640,1754615465816,-506.53,0.00022738,2]
[377936641,1754615465826,-272.28,0.00022738,2]
[377936642,1754615465838,-672.45,0.00022738,2]
[377936643,1754615465850,-407.25,0.00022738,2]
[377936644,1754615465861,-404.1,0.00022738,2]
[377936645,1754615465873,-579.75,0.00022739,2]
[377936646,1754615465885,-535.02,0.00022739,2]
[377936647,1754615465898,-2201.94,0.00022739,2]
[377936648,1754615465910,-154.88364059,0.00022842,2]
[377936649,1754615465927,-173.68,0.00022855,2]
[377936650,1754615465939,-400.0,0.00022861,2]
[377936651,1754615465950,-691.91,0.00023012,2]
[377936652,1754615465963,-506.53,0.00023012,2]
[377936653,1754615465979,-672.45,0.00023012,2]
[377936654,1754615465991,-407.25,0.00023012,2]
[377936655,1754615466002,-579.75,0.00023013,2]
[377936656,1754615466013,-535.02,0.00023013,2]
[377936657,1754615466025,-2201.94,0.00023013,2]
[377936658,1754615466037,-400.0,0.00023135,2]
[377936659,1754615466048,-691.91,0.00023286,2]
[377936660,1754615466059,-506.53,0.00023286,2]
[377936661,1754615466073,-672.45,0.00023286,2]
[377936662,1754615466084,-407.25,0.00023286,2]
[377936663,1754615466096,-579.75,0.00023287,2]
[377936664,1754615466107,-535.02,0.00023287,2]
[377936665,1754615466118,-2201.94,0.00023287,2]
[377936666,1754615466130,-150.55,0.00023287,2]
[377936667,1754615466141,-515.69,0.00023409,2]
[377936668,1754615466152,-691.91,0.0002356,2]
[377936669,1754615466163,-506.53,0.0002356,2]
[377936670,1754615466178,-672.45,0.0002356,2]
[377936671,1754615466190,-407.25,0.0002356,2]
[377936672,1754615466202,-579.75,0.00023561,2]
[377936673,1754615466212,-535.02,0.00023561,2]
[377936674,1754615466223,-2201.94,0.00023561,2]
[377936675,1754615466235,-4000.0,0.00023656,4]
[377936676,1754615466246,-24440.74531025,0.0002371,2]
[377936677,1754615466257,-457.55740054,0.00023813,2]
[377936678,1754615466269,-211.58213282,0.0002382,2]
[377936679,1754615466283,-160.0,0.0002382,2]
[377936680,1754615466295,-691.91,0.00023834,2]
[377936681,1754615466307,-506.53,0.00023834,2]
[377936682,1754615466318,-672.45,0.00023834,2]
[377936683,1754615466329,-407.25,0.00023834,2]
[377936684,1754615466340,-579.75,0.00023835,2]
[377936685,1754615466351,-535.02,0.00023835,2]
[377936686,1754615466363,-2201.94,0.00023835,2]
[377936687,1754615466374,-1000.0,0.00023879,2]
[377936688,1754615466389,-691.91,0.00024108,2]
[377936689,1754615466401,-506.53,0.00024108,2]
[377936690,1754615466413,-672.45,0.00024108,2]
[377936691,1754615466429,-407.25,0.00024108,2]
[377936692,1754615466441,-579.75,0.00024109,2]
[377936693,1754615466453,-535.02,0.00024109,2]
[377936694,1754615466464,-2201.94,0.00024109,2]
[377936695,1754615466475,-183.2075,0.00024369,2]
[377936696,1754615466486,-691.91,0.00024382,2]
[377936697,1754615466497,-506.53,0.00024382,2]
[377936698,1754615466510,-672.45,0.00024382,2]
[377936699,1754615466524,-407.25,0.00024382,2]
[377936700,1754615466535,-579.75,0.00024383,2]
[377936701,1754615466546,-535.02,0.00024383,2]
[377936702,1754615466560,-2201.94,0.00024383,2]
[377936703,1754615466571,-500.0,0.00024655,2]
[377936704,1754615466583,-691.91,0.00024656,2]
[377936705,1754615466600,-506.53,0.00024656,2]
[377936706,1754615466611,-672.45,0.00024656,2]
[377936707,1754615466622,-559.67,0.00024656,2]
[377936708,1754615466634,-407.25,0.00024656,2]
[377936709,1754615466646,-579.75,0.00024657,2]
[377936710,1754615466657,-535.02,0.00024657,2]
[377936711,1754615466668,-2201.94,0.00024657,2]
[377936712,1754615466682,-150.0,0.00024658,2]
[377936713,1754615466693,-1000.0,0.00024658,2]
[377936714,1754615466704,-394.58714974,0.0002479,2]
[377936715,1754615466715,-215.52,0.00024799,2]
[377936716,1754615466725,-485.87,0.00024799,2]
[377936717,1754615466736,-500.0,0.00024799,2]
[377936718,1754615466748,-500.0,0.00024799,2]
[377936719,1754615466759,-559.67,0.00024799,2]
[377936720,1754615466770,-457.55740054,0.000248,3]
[377936721,1754615466781,-185.84933406,0.000248,2]
[377936722,1754615466793,-160.0,0.000248,3]
[377936723,1754615466807,-211.58213282,0.000248,3]
[377936724,1754615466819,-296380.308034,0.000248,3]
[377936725,1754615466829,-842.27441137,0.000248,3]
[377936726,1754615466840,-157.81523369,0.0002483,2]
[377936727,1754615466852,-111142.615513,0.0002489,3]
[377936728,1754615466863,-559.67,0.00024899,2]
[377936729,1754615466874,-600.0,0.000249,9]
[377936730,1754615466885,-327772.847096,0.000249,3]
[377936731,1754615466897,-691.91,0.0002493,2]
[377936732,1754615466911,-506.53,0.0002493,2]
[377936733,1754615466925,-672.45,0.0002493,2]
[377936734,1754615466937,-407.25,0.0002493,2]
[377936735,1754615466948,-579.75,0.00024931,2]
[377936736,1754615466960,-535.02,0.00024931,2]
[377936737,1754615466971,-2201.94,0.00024931,2]
[377936738,1754615466982,-163.0,0.00025,7]
[377936739,1754615466994,-691.91,0.00025204,2]
[377936740,1754615467005,-506.53,0.00025204,2]
[377936741,1754615467019,-672.45,0.00025204,2]
[377936742,1754615467072,-407.25,0.00025204,2]
[377936743,1754615467085,-579.75,0.00025205,2]
[377936744,1754615467096,-535.02,0.00025205,2]
[377936745,1754615467108,-2201.94,0.00025205,2]
[377936746,1754615467119,-13110.9138838,0.00025449,3]